[Event "Titled Tuesday Blitz May 16 Early 2023"]
[White "Prieto Aranguren, Alain"]
[Black "Camilla_Lee"]
[WhiteFideId "2268906"]
[WhiteElo "2209"]
[BlackElo "2616"]
[Result "1/2-1/2"]
[Round "03"]
[TimeControl "180+2"]
[Date "2023.05.16"]
[WhiteClock "0:00:15"]
[BlackClock "0:00:41"]

1. e4 {[%clk 0:02:42]}  e5 {[%clk 0:02:59]} 2. Ne2 {[%clk 0:02:40]}  Nc6 {[%clk 0:02:59]} 3. Nec3 {[%clk 0:02:40]}  Nf6 {[%clk 0:02:57]} 4. Bb5 {[%clk 0:02:40]}  a6 {[%clk 0:02:53]} 5. Bxc6 {[%clk 0:02:40]}  bxc6 {[%clk 0:02:52]} 6. O-O {[%clk 0:02:40]}  d5 {[%clk 0:02:52]} 7. exd5 {[%clk 0:02:40]}  cxd5 {[%clk 0:02:52]} 8. Re1 {[%clk 0:02:40]}  Bd6 {[%clk 0:02:52]} 9. d4 {[%clk 0:02:36]}  e4 {[%clk 0:02:51]} 10. Bg5 {[%clk 0:02:36]}  O-O {[%clk 0:02:33]} 11. Nxd5 {[%clk 0:02:35]}  Bxh2+ {[%clk 0:02:29]} 12. Kxh2 {[%clk 0:02:35]}  Qxd5 {[%clk 0:02:28]} 13. Bxf6 {[%clk 0:02:35]}  gxf6 {[%clk 0:02:28]} 14. Nc3 {[%clk 0:02:33]}  Qd6+ {[%clk 0:02:28]} 15. Kg1 {[%clk 0:02:30]}  f5 {[%clk 0:02:28]} 16. Qh5 {[%clk 0:02:27]}  Kh8 {[%clk 0:02:15]} 17. Re3 {[%clk 0:02:23]}  Qg6 {[%clk 0:02:12]} 18. Qh4 {[%clk 0:02:18]}  Rg8 {[%clk 0:02:06]} 19. Rg3 {[%clk 0:02:17]}  Qd6 {[%clk 0:02:07]} 20. Rxg8+ {[%clk 0:02:08]}  Kxg8 {[%clk 0:02:08]} 21. Re1 {[%clk 0:02:01]}  Bb7 {[%clk 0:02:01]} 22. Re3 {[%clk 0:01:58]}  f4 {[%clk 0:02:01]} 23. Rh3 {[%clk 0:01:56]}  Qxd4 {[%clk 0:01:58]} 24. Qxh7+ {[%clk 0:01:53]}  Kf8 {[%clk 0:01:59]} 25. Qh6+ {[%clk 0:01:45]}  Ke7 {[%clk 0:01:55]} 26. Qxf4 {[%clk 0:01:44]}  Rg8 {[%clk 0:01:52]} 27. Re3 {[%clk 0:01:39]}  c5 {[%clk 0:01:33]} 28. Nxe4 {[%clk 0:01:29]}  Qd1+ {[%clk 0:01:31]} 29. Kh2 {[%clk 0:01:29]}  Rh8+ {[%clk 0:01:29]} 30. Rh3 {[%clk 0:01:28]}  Rxh3+ {[%clk 0:01:26]} 31. Kxh3 {[%clk 0:01:10]}  Qh5+ {[%clk 0:01:26]} 32. Kg3 {[%clk 0:01:07]}  Qg6+ {[%clk 0:01:26]} 33. Qg5+ {[%clk 0:00:56]}  Qxg5+ {[%clk 0:01:15]} 34. Nxg5 {[%clk 0:00:56]}  Kf6 {[%clk 0:01:15]} 35. Nf3 {[%clk 0:00:48]}  Kf5 {[%clk 0:01:15]} 36. Nd2 {[%clk 0:00:44]}  Ke5 {[%clk 0:01:10]} 37. f3 {[%clk 0:00:41]}  Kd4 {[%clk 0:01:05]} 38. Kf4 {[%clk 0:00:38]}  c4 {[%clk 0:01:04]} 39. Ne4 {[%clk 0:00:34]}  Bd5 {[%clk 0:01:00]} 40. Nc3 {[%clk 0:00:33]}  Be6 {[%clk 0:00:59]} 41. g4 {[%clk 0:00:33]}  a5 {[%clk 0:00:57]} 42. g5 {[%clk 0:00:33]}  Bd7 {[%clk 0:00:52]} 43. Ne4 {[%clk 0:00:31]}  Bc6 {[%clk 0:00:50]} 44. Nd6 {[%clk 0:00:27]}  Bd5 {[%clk 0:00:48]} 45. Kf5 {[%clk 0:00:23]}  Bxf3 {[%clk 0:00:45]} 46. Nxf7 {[%clk 0:00:20]}  Be4+ {[%clk 0:00:46]} 47. Kf6 {[%clk 0:00:20]}  Bxc2 {[%clk 0:00:46]} 48. g6 {[%clk 0:00:20]}  Bxg6 {[%clk 0:00:44]} 49. Kxg6 {[%clk 0:00:20]}  c3 {[%clk 0:00:43]} 50. bxc3+ {[%clk 0:00:19]}  Kxc3 {[%clk 0:00:43]} 51. Nd6 {[%clk 0:00:17]}  Kb2 {[%clk 0:00:40]} 52. a4 {[%clk 0:00:17]}  Kb3 {[%clk 0:00:40]} 53. Kf5 {[%clk 0:00:15]}  Kxa4 {[%clk 0:00:41]} 54. Ke4 {[%clk 0:00:15]}  Kb3 {[%clk 0:00:39]} 55. Kd4 {[%clk 0:00:16]}  a4 {[%clk 0:00:40]} 56. Nc4 {[%clk 0:00:16]}  Kb4 {[%clk 0:00:39]} 57. Kd3 {[%clk 0:00:16]}  Kb3 {[%clk 0:00:40]} 58. Kd4 {[%clk 0:00:16]}  a3 {[%clk 0:00:41]} 59. Nxa3 {[%clk 0:00:15]} 1/2-1/2


[Site "https://www.chess.com"]

[Event "Titled Tuesday Blitz May 16 Early 2023"]
[White "Mortazavi, Ali"]
[Black "Mike24147"]
[WhiteFideId "401323"]
[WhiteElo "2339"]
[BlackElo "2326"]
[Result "1-0"]
[Round "03"]
[TimeControl "180+2"]
[Date "2023.05.16"]
[WhiteClock "0:00:35"]
[BlackClock "0:00:00"]

1. Nf3 {[%clk 0:03:00]}  d5 {[%clk 0:02:59]} 2. g3 {[%clk 0:03:01]}  Nf6 {[%clk 0:02:58]} 3. Bg2 {[%clk 0:03:02]}  c6 {[%clk 0:02:58]} 4. O-O {[%clk 0:03:03]}  Bf5 {[%clk 0:02:58]} 5. d3 {[%clk 0:03:03]}  e6 {[%clk 0:02:59]} 6. c4 {[%clk 0:03:04]}  Bd6 {[%clk 0:02:57]} 7. Be3 {[%clk 0:03:05]}  O-O {[%clk 0:02:56]} 8. Qb3 {[%clk 0:03:05]}  Qc8 {[%clk 0:02:54]} 9. Nc3 {[%clk 0:03:05]}  Nbd7 {[%clk 0:02:54]} 10. cxd5 {[%clk 0:03:06]}  exd5 {[%clk 0:02:54]} 11. Rac1 {[%clk 0:03:06]}  Qb8 {[%clk 0:02:52]} 12. Nd4 {[%clk 0:02:54]}  Bg6 {[%clk 0:02:50]} 13. Bh3 {[%clk 0:02:54]}  c5 {[%clk 0:02:43]} 14. Nxd5 {[%clk 0:02:41]}  cxd4 {[%clk 0:02:34]} 15. Bxd4 {[%clk 0:02:39]}  Nxd5 {[%clk 0:02:19]} 16. Bxd7 {[%clk 0:02:39]}  Nf6 {[%clk 0:02:17]} 17. Bxf6 {[%clk 0:02:37]}  gxf6 {[%clk 0:02:17]} 18. Bh3 {[%clk 0:02:24]}  Be5 {[%clk 0:02:10]} 19. Bg2 {[%clk 0:02:22]}  Qd6 {[%clk 0:02:06]} 20. Rfd1 {[%clk 0:02:14]}  Bd4 {[%clk 0:02:05]} 21. e3 {[%clk 0:02:14]}  Bb6 {[%clk 0:02:03]} 22. d4 {[%clk 0:02:12]}  Rac8 {[%clk 0:02:00]} 23. Bxb7 {[%clk 0:02:08]}  Rxc1 {[%clk 0:01:56]} 24. Rxc1 {[%clk 0:02:08]}  Rb8 {[%clk 0:01:56]} 25. Qd5 {[%clk 0:02:01]}  Qxd5 {[%clk 0:01:20]} 26. Bxd5 {[%clk 0:02:01]}  a5 {[%clk 0:01:13]} 27. b3 {[%clk 0:01:51]}  Kf8 {[%clk 0:01:10]} 28. g4 {[%clk 0:01:46]}  Bd3 {[%clk 0:01:04]} 29. Rc3 {[%clk 0:01:42]}  Bb5 {[%clk 0:01:02]} 30. f4 {[%clk 0:01:37]}  Bd7 {[%clk 0:01:02]} 31. h3 {[%clk 0:01:35]}  Be6 {[%clk 0:01:01]} 32. Be4 {[%clk 0:01:30]}  h6 {[%clk 0:00:58]} 33. Rc6 {[%clk 0:01:29]}  Ke7 {[%clk 0:00:52]} 34. Kf2 {[%clk 0:01:29]}  Bd7 {[%clk 0:00:49]} 35. Rc2 {[%clk 0:01:27]}  a4 {[%clk 0:00:47]} 36. bxa4 {[%clk 0:01:26]}  Bxa4 {[%clk 0:00:45]} 37. Rb2 {[%clk 0:01:25]}  Bc7 {[%clk 0:00:43]} 38. Rxb8 {[%clk 0:01:21]}  Bxb8 {[%clk 0:00:44]} 39. Bd5 {[%clk 0:01:21]}  Bd7 {[%clk 0:00:36]} 40. Kf3 {[%clk 0:01:21]}  Be6 {[%clk 0:00:25]} 41. Ke4 {[%clk 0:01:21]}  Kd6 {[%clk 0:00:18]} 42. Bxe6 {[%clk 0:01:22]}  fxe6 {[%clk 0:00:19]} 43. h4 {[%clk 0:01:17]}  Bc7 {[%clk 0:00:17]} 44. f5 {[%clk 0:01:15]}  Bd8 {[%clk 0:00:15]} 45. a4 {[%clk 0:01:11]}  e5 {[%clk 0:00:09]} 46. g5 {[%clk 0:00:50]}  fxg5 {[%clk 0:00:08]} 47. hxg5 {[%clk 0:00:51]}  hxg5 {[%clk 0:00:08]} 48. dxe5+ {[%clk 0:00:52]}  Ke7 {[%clk 0:00:09]} 49. Kf3 {[%clk 0:00:47]}  Bc7 {[%clk 0:00:09]} 50. Ke4 {[%clk 0:00:44]}  Kf7 {[%clk 0:00:03]} 51. Kd4 {[%clk 0:00:36]}  g4 {[%clk 0:00:02]} 52. Ke4 {[%clk 0:00:37]}  Bxe5 {[%clk 0:00:02]} 53. a5 {[%clk 0:00:36]}  Bb8 {[%clk 0:00:00]} 54. a6 {[%clk 0:00:35]} 1-0


[Site "https://www.chess.com"]

[Event "Titled Tuesday Blitz May 16 Early 2023"]
[White "Onslow, Alfie"]
[Black "Arat, Ufuk Sezen"]
[WhiteFideId "436976"]
[BlackFideId "6309089"]
[WhiteElo "2114"]
[BlackElo "2289"]
[Result "1-0"]
[Round "03"]
[TimeControl "180+2"]
[Date "2023.05.16"]
[WhiteClock "0:00:03"]
[BlackClock "0:00:04"]

1. e4 {[%clk 0:03:00]}  c5 {[%clk 0:02:59]} 2. Nc3 {[%clk 0:02:59]}  e6 {[%clk 0:03:00]} 3. Nf3 {[%clk 0:02:58]}  d5 {[%clk 0:03:00]} 4. exd5 {[%clk 0:02:55]}  exd5 {[%clk 0:03:01]} 5. d4 {[%clk 0:02:51]}  cxd4 {[%clk 0:03:02]} 6. Nxd4 {[%clk 0:02:48]}  Nf6 {[%clk 0:03:02]} 7. Bb5+ {[%clk 0:02:48]}  Bd7 {[%clk 0:03:02]} 8. O-O {[%clk 0:02:45]}  Be7 {[%clk 0:03:02]} 9. Nf5 {[%clk 0:02:24]}  O-O {[%clk 0:02:15]} 10. Nxe7+ {[%clk 0:02:21]}  Qxe7 {[%clk 0:02:15]} 11. Nxd5 {[%clk 0:02:06]}  Nxd5 {[%clk 0:02:14]} 12. Qxd5 {[%clk 0:02:07]}  Bxb5 {[%clk 0:01:56]} 13. Qxb5 {[%clk 0:02:08]}  Nc6 {[%clk 0:01:54]} 14. Be3 {[%clk 0:02:04]}  Qe4 {[%clk 0:01:38]} 15. c3 {[%clk 0:01:59]}  a6 {[%clk 0:00:48]} 16. Qb6 {[%clk 0:01:40]}  Ne5 {[%clk 0:00:42]} 17. Qd4 {[%clk 0:01:39]}  Qf5 {[%clk 0:00:41]} 18. Qf4 {[%clk 0:01:35]}  Qxf4 {[%clk 0:00:34]} 19. Bxf4 {[%clk 0:01:34]}  Nd3 {[%clk 0:00:35]} 20. Bd6 {[%clk 0:01:24]}  Rfd8 {[%clk 0:00:34]} 21. Ba3 {[%clk 0:01:20]}  Ne5 {[%clk 0:00:25]} 22. b3 {[%clk 0:01:14]}  Rd3 {[%clk 0:00:21]} 23. Rfe1 {[%clk 0:01:01]}  f6 {[%clk 0:00:20]} 24. c4 {[%clk 0:00:58]}  Nxc4 {[%clk 0:00:19]} 25. bxc4 {[%clk 0:00:41]}  Rxa3 {[%clk 0:00:20]} 26. Re7 {[%clk 0:00:41]}  Rc8 {[%clk 0:00:19]} 27. g3 {[%clk 0:00:36]}  b5 {[%clk 0:00:17]} 28. cxb5 {[%clk 0:00:32]}  axb5 {[%clk 0:00:18]} 29. Rd1 {[%clk 0:00:31]}  Kh8 {[%clk 0:00:10]} 30. Rdd7 {[%clk 0:00:30]}  Rg8 {[%clk 0:00:11]} 31. Ra7 {[%clk 0:00:26]}  Rxa7 {[%clk 0:00:10]} 32. Rxa7 {[%clk 0:00:26]}  Rc8 {[%clk 0:00:09]} 33. Rb7 {[%clk 0:00:26]}  h5 {[%clk 0:00:08]} 34. Rxb5 {[%clk 0:00:26]}  g6 {[%clk 0:00:09]} 35. a4 {[%clk 0:00:21]}  Rc1+ {[%clk 0:00:09]} 36. Kg2 {[%clk 0:00:21]}  Ra1 {[%clk 0:00:10]} 37. Ra5 {[%clk 0:00:20]}  Kg7 {[%clk 0:00:11]} 38. Ra7+ {[%clk 0:00:21]}  Kh6 {[%clk 0:00:11]} 39. h4 {[%clk 0:00:19]}  Ra3 {[%clk 0:00:11]} 40. a5 {[%clk 0:00:15]}  g5 {[%clk 0:00:11]} 41. hxg5+ {[%clk 0:00:12]}  Kxg5 {[%clk 0:00:12]} 42. a6 {[%clk 0:00:11]}  Ra2 {[%clk 0:00:10]} 43. Rg7+ {[%clk 0:00:09]}  Kh6 {[%clk 0:00:10]} 44. Ra7 {[%clk 0:00:09]}  Kg5 {[%clk 0:00:10]} 45. Ra8 {[%clk 0:00:09]}  Ra3 {[%clk 0:00:08]} 46. a7 {[%clk 0:00:09]}  Kf5 {[%clk 0:00:08]} 47. Kh3 {[%clk 0:00:06]}  Ra4 {[%clk 0:00:09]} 48. f4 {[%clk 0:00:05]}  Ra1 {[%clk 0:00:07]} 49. Rh8 {[%clk 0:00:04]}  Rxa7 {[%clk 0:00:06]} 50. Rxh5+ {[%clk 0:00:04]}  Kg6 {[%clk 0:00:07]} 51. Rb5 {[%clk 0:00:04]}  Ra1 {[%clk 0:00:08]} 52. Kg4 {[%clk 0:00:04]}  Ra7 {[%clk 0:00:06]} 53. Rb6 {[%clk 0:00:03]}  Re7 {[%clk 0:00:06]} 54. f5+ {[%clk 0:00:03]}  Kg7 {[%clk 0:00:06]} 55. Re6 {[%clk 0:00:03]}  Rc7 {[%clk 0:00:06]} 56. Kh4 {[%clk 0:00:03]}  Rc4+ {[%clk 0:00:05]} 57. g4 {[%clk 0:00:03]}  Rc7 {[%clk 0:00:03]} 58. Kh5 {[%clk 0:00:03]}  Rd7 {[%clk 0:00:03]} 59. g5 {[%clk 0:00:02]}  fxg5 {[%clk 0:00:04]} 60. Kxg5 {[%clk 0:00:01]}  Rc7 {[%clk 0:00:04]} 61. Rg6+ {[%clk 0:00:01]}  Kf7 {[%clk 0:00:04]} 62. Rh6 {[%clk 0:00:02]}  Kg7 {[%clk 0:00:04]} 63. Rg6+ {[%clk 0:00:02]}  Kh7 {[%clk 0:00:05]} 64. Rh6+ {[%clk 0:00:03]}  Kg8 {[%clk 0:00:05]} 65. Kg6 {[%clk 0:00:03]}  Rg7+ {[%clk 0:00:05]} 66. Kf6 {[%clk 0:00:02]}  Rg1 {[%clk 0:00:06]} 67. Rg6+ {[%clk 0:00:02]}  Rxg6+ {[%clk 0:00:06]} 68. Kxg6 {[%clk 0:00:03]}  Kh8 {[%clk 0:00:05]} 69. Kf7 {[%clk 0:00:03]}  Kh7 {[%clk 0:00:04]} 70. f6 {[%clk 0:00:03]} 1-0


[Site "https://www.chess.com"]

[Event "Titled Tuesday Blitz May 16 Early 2023"]
[White "Smith, Shreyas"]
[Black "Dobre, Claudiu-Cristian"]
[WhiteFideId "7400713"]
[BlackFideId "1211854"]
[WhiteElo "2151"]
[BlackElo "2207"]
[Result "1-0"]
[Round "03"]
[TimeControl "180+2"]
[Date "2023.05.16"]
[WhiteClock "0:01:22"]
[BlackClock "0:00:09"]

1. e4 {[%clk 0:03:00]}  Nc6 {[%clk 0:02:59]} 2. Nf3 {[%clk 0:03:00]}  d6 {[%clk 0:02:59]} 3. d4 {[%clk 0:03:00]}  Nf6 {[%clk 0:02:59]} 4. Bd3 {[%clk 0:02:58]}  Nb4 {[%clk 0:02:54]} 5. O-O {[%clk 0:02:54]}  Nxd3 {[%clk 0:02:53]} 6. Qxd3 {[%clk 0:02:55]}  g6 {[%clk 0:02:30]} 7. h3 {[%clk 0:02:53]}  Bg7 {[%clk 0:02:29]} 8. c4 {[%clk 0:02:46]}  O-O {[%clk 0:02:23]} 9. Nc3 {[%clk 0:02:47]}  c5 {[%clk 0:01:57]} 10. d5 {[%clk 0:02:43]}  e6 {[%clk 0:01:47]} 11. Bg5 {[%clk 0:02:28]}  h6 {[%clk 0:01:37]} 12. Bh4 {[%clk 0:02:27]}  g5 {[%clk 0:01:13]} 13. Bg3 {[%clk 0:02:26]}  e5 {[%clk 0:01:13]} 14. Rab1 {[%clk 0:02:17]}  Nh5 {[%clk 0:01:09]} 15. b4 {[%clk 0:02:09]}  b6 {[%clk 0:00:58]} 16. bxc5 {[%clk 0:01:54]}  bxc5 {[%clk 0:00:58]} 17. Rb2 {[%clk 0:01:48]}  f5 {[%clk 0:00:57]} 18. exf5 {[%clk 0:01:46]}  Bxf5 {[%clk 0:00:56]} 19. Ne4 {[%clk 0:01:46]}  Nxg3 {[%clk 0:00:16]} 20. fxg3 {[%clk 0:01:44]}  g4 {[%clk 0:00:16]} 21. Nh4 {[%clk 0:01:31]}  Bxe4 {[%clk 0:00:15]} 22. Rxf8+ {[%clk 0:01:32]}  Qxf8 {[%clk 0:00:13]} 23. Qxe4 {[%clk 0:01:33]}  gxh3 {[%clk 0:00:12]} 24. gxh3 {[%clk 0:01:33]}  Rb8 {[%clk 0:00:12]} 25. Ng6 {[%clk 0:01:24]}  Qf6 {[%clk 0:00:09]} 26. Rxb8+ {[%clk 0:01:22]} 1-0


[Site "https://www.chess.com"]

[Event "Titled Tuesday Blitz May 16 Early 2023"]
[White "Perera Alfonso, Rene Humberto"]
[Black "Rodriguez Santiago, Jaime"]
[WhiteFideId "3514722"]
[BlackFideId "3100898"]
[WhiteElo "2313"]
[BlackElo "2025"]
[Result "1-0"]
[Round "03"]
[TimeControl "180+2"]
[Date "2023.05.16"]
[WhiteClock "0:01:11"]
[BlackClock "0:00:22"]

1. e4 {[%clk 0:02:59]}  c6 {[%clk 0:02:59]} 2. d4 {[%clk 0:02:56]}  d5 {[%clk 0:02:59]} 3. exd5 {[%clk 0:02:54]}  cxd5 {[%clk 0:03:00]} 4. c4 {[%clk 0:02:54]}  e6 {[%clk 0:02:58]} 5. Nc3 {[%clk 0:02:54]}  Nf6 {[%clk 0:02:57]} 6. Nf3 {[%clk 0:02:55]}  Be7 {[%clk 0:02:57]} 7. Bd3 {[%clk 0:02:54]}  dxc4 {[%clk 0:02:56]} 8. Bxc4 {[%clk 0:02:54]}  O-O {[%clk 0:02:57]} 9. O-O {[%clk 0:02:54]}  Nbd7 {[%clk 0:02:39]} 10. a3 {[%clk 0:02:53]}  a6 {[%clk 0:02:36]} 11. Qd3 {[%clk 0:02:52]}  b5 {[%clk 0:02:34]} 12. Ba2 {[%clk 0:02:52]}  Nb6 {[%clk 0:02:34]} 13. Bg5 {[%clk 0:02:51]}  Bb7 {[%clk 0:02:33]} 14. Rad1 {[%clk 0:02:49]}  h6 {[%clk 0:02:32]} 15. Bh4 {[%clk 0:02:49]}  Rc8 {[%clk 0:02:27]} 16. Bb1 {[%clk 0:02:48]}  g6 {[%clk 0:02:09]} 17. Rfe1 {[%clk 0:02:44]}  Qd6 {[%clk 0:01:51]} 18. Ne5 {[%clk 0:02:36]}  g5 {[%clk 0:01:32]} 19. Ng4 {[%clk 0:02:29]}  Nbd7 {[%clk 0:01:05]} 20. Nxh6+ {[%clk 0:02:27]}  Kg7 {[%clk 0:01:04]} 21. Bxg5 {[%clk 0:02:25]}  Rh8 {[%clk 0:01:04]} 22. d5 {[%clk 0:02:00]}  Ne5 {[%clk 0:00:56]} 23. Qg3 {[%clk 0:01:56]}  Ng6 {[%clk 0:00:51]} 24. Bxf6+ {[%clk 0:01:40]}  Kxf6 {[%clk 0:00:51]} 25. Ng4+ {[%clk 0:01:36]}  Kg7 {[%clk 0:00:50]} 26. Qxd6 {[%clk 0:01:31]}  Bxd6 {[%clk 0:00:51]} 27. dxe6 {[%clk 0:01:32]}  Bb8 {[%clk 0:00:43]} 28. Rd7 {[%clk 0:01:28]}  Rh4 {[%clk 0:00:31]} 29. Rxf7+ {[%clk 0:01:22]}  Kg8 {[%clk 0:00:30]} 30. Bxg6 {[%clk 0:01:10]}  Rxg4 {[%clk 0:00:30]} 31. Bh7+ {[%clk 0:01:10]}  Kh8 {[%clk 0:00:22]} 32. Rxb7 {[%clk 0:01:11]} 1-0


[Site "https://www.chess.com"]

[Event "Titled Tuesday Blitz May 16 Early 2023"]
[White "Womacka, Mathias"]
[Black "Afanasieva, Alexandra"]
[WhiteFideId "4611390"]
[BlackFideId "34126926"]
[WhiteElo "2377"]
[BlackElo "1745"]
[Result "0-1"]
[Round "03"]
[TimeControl "180+2"]
[Date "2023.05.16"]
[WhiteClock "0:01:06"]
[BlackClock "0:00:36"]

1. e4 {[%clk 0:03:00]}  c5 {[%clk 0:02:59]} 2. Nf3 {[%clk 0:03:00]}  Nc6 {[%clk 0:02:58]} 3. d4 {[%clk 0:03:00]}  cxd4 {[%clk 0:02:58]} 4. Nxd4 {[%clk 0:03:01]}  e5 {[%clk 0:02:58]} 5. Nb5 {[%clk 0:03:00]}  a6 {[%clk 0:02:51]} 6. Nd6+ {[%clk 0:02:59]}  Bxd6 {[%clk 0:02:51]} 7. Qxd6 {[%clk 0:03:00]}  Qe7 {[%clk 0:02:46]} 8. Qd1 {[%clk 0:03:00]}  Nf6 {[%clk 0:02:45]} 9. Nc3 {[%clk 0:02:57]}  d6 {[%clk 0:02:45]} 10. Bg5 {[%clk 0:02:56]}  Be6 {[%clk 0:02:43]} 11. Nd5 {[%clk 0:02:56]}  Bxd5 {[%clk 0:02:42]} 12. exd5 {[%clk 0:02:57]}  Nd4 {[%clk 0:02:38]} 13. c3 {[%clk 0:02:52]}  Nf5 {[%clk 0:02:33]} 14. Bd3 {[%clk 0:02:46]}  Nh6 {[%clk 0:02:28]} 15. O-O {[%clk 0:02:29]}  Qd7 {[%clk 0:02:14]} 16. f4 {[%clk 0:02:15]}  Nxd5 {[%clk 0:02:03]} 17. fxe5 {[%clk 0:02:11]}  dxe5 {[%clk 0:02:04]} 18. Bc4 {[%clk 0:01:55]}  Nb6 {[%clk 0:01:32]} 19. Qxd7+ {[%clk 0:01:46]}  Kxd7 {[%clk 0:01:28]} 20. Bxh6 {[%clk 0:01:45]}  Nxc4 {[%clk 0:01:20]} 21. Bxg7 {[%clk 0:01:42]}  Rhg8 {[%clk 0:01:19]} 22. Rxf7+ {[%clk 0:01:41]}  Ke6 {[%clk 0:01:18]} 23. Rxb7 {[%clk 0:01:39]}  Nd6 {[%clk 0:01:17]} 24. Rb6 {[%clk 0:01:22]}  Rxg7 {[%clk 0:01:14]} 25. Rd1 {[%clk 0:01:21]}  Rd7 {[%clk 0:01:13]} 26. c4 {[%clk 0:01:21]}  Ke7 {[%clk 0:01:12]} 27. c5 {[%clk 0:01:21]}  Nc4 {[%clk 0:01:05]} 28. Rxd7+ {[%clk 0:01:18]}  Kxd7 {[%clk 0:01:06]} 29. Rh6 {[%clk 0:01:18]}  Nxb2 {[%clk 0:01:03]} 30. Kf2 {[%clk 0:01:17]}  Nd3+ {[%clk 0:01:01]} 31. Ke3 {[%clk 0:01:14]}  Nxc5 {[%clk 0:01:01]} 32. Rxh7+ {[%clk 0:01:14]}  Kd6 {[%clk 0:01:00]} 33. g4 {[%clk 0:01:15]}  Rg8 {[%clk 0:00:59]} 34. h3 {[%clk 0:01:15]}  Ne6 {[%clk 0:00:56]} 35. Ra7 {[%clk 0:01:13]}  Nc5 {[%clk 0:00:54]} 36. Kf3 {[%clk 0:01:11]}  Rh8 {[%clk 0:00:51]} 37. Kg3 {[%clk 0:01:11]}  Ne4+ {[%clk 0:00:50]} 38. Kg2 {[%clk 0:01:11]}  Nc5 {[%clk 0:00:49]} 39. g5 {[%clk 0:01:11]}  e4 {[%clk 0:00:43]} 40. Kg3 {[%clk 0:01:09]}  e3 {[%clk 0:00:39]} 41. h4 {[%clk 0:01:09]}  e2 {[%clk 0:00:37]} 42. Kf2 {[%clk 0:01:09]}  Re8 {[%clk 0:00:37]} 43. Ke1 {[%clk 0:01:09]}  Nd3+ {[%clk 0:00:36]} 44. Kd2 {[%clk 0:01:09]}  e1=Q+ {[%clk 0:00:37]} 45. Kxd3 {[%clk 0:01:10]}  Qe3+ {[%clk 0:00:36]} 46. Kc4 {[%clk 0:01:06]}  Qxa7 {[%clk 0:00:36]} 0-1


[Site "https://www.chess.com"]

[Event "Titled Tuesday Blitz May 16 Early 2023"]
[White "Panda Sambit"]
[Black "ChawitAp"]
[WhiteFideId "25091794"]
[WhiteElo "2272"]
[BlackElo "2230"]
[Result "1-0"]
[Round "03"]
[TimeControl "180+2"]
[Date "2023.05.16"]
[WhiteClock "0:00:03"]
[BlackClock "0:00:00"]

1. Nf3 {[%clk 0:02:57]}  d5 {[%clk 0:02:53]} 2. d4 {[%clk 0:02:58]}  c6 {[%clk 0:02:52]} 3. Bf4 {[%clk 0:02:58]}  Nf6 {[%clk 0:02:52]} 4. e3 {[%clk 0:02:58]}  Qb6 {[%clk 0:02:51]} 5. Qc1 {[%clk 0:02:47]}  Bf5 {[%clk 0:02:50]} 6. c4 {[%clk 0:02:46]}  e6 {[%clk 0:02:50]} 7. Nc3 {[%clk 0:02:46]}  Nbd7 {[%clk 0:02:48]} 8. c5 {[%clk 0:02:43]}  Qd8 {[%clk 0:02:48]} 9. h3 {[%clk 0:02:43]}  Be7 {[%clk 0:02:48]} 10. Be2 {[%clk 0:02:42]}  Ne4 {[%clk 0:02:47]} 11. O-O {[%clk 0:02:40]}  O-O {[%clk 0:02:48]} 12. b4 {[%clk 0:02:40]}  Re8 {[%clk 0:02:47]} 13. Nxe4 {[%clk 0:02:37]}  Bxe4 {[%clk 0:02:43]} 14. Nd2 {[%clk 0:02:38]}  Bg6 {[%clk 0:02:39]} 15. Bg3 {[%clk 0:02:33]}  Bf6 {[%clk 0:02:39]} 16. f4 {[%clk 0:02:30]}  b6 {[%clk 0:02:25]} 17. b5 {[%clk 0:02:19]}  bxc5 {[%clk 0:02:03]} 18. bxc6 {[%clk 0:02:18]}  cxd4 {[%clk 0:02:03]} 19. cxd7 {[%clk 0:02:16]}  Qxd7 {[%clk 0:02:04]} 20. Nf3 {[%clk 0:02:09]}  d3 {[%clk 0:02:01]} 21. Bd1 {[%clk 0:02:04]}  Bxa1 {[%clk 0:01:59]} 22. Qxa1 {[%clk 0:02:04]}  Be4 {[%clk 0:01:46]} 23. Be1 {[%clk 0:01:57]}  Rac8 {[%clk 0:01:43]} 24. Qd4 {[%clk 0:01:53]}  Rc4 {[%clk 0:01:34]} 25. Qb2 {[%clk 0:01:32]}  Qc7 {[%clk 0:01:28]} 26. Ne5 {[%clk 0:01:22]}  Rc1 {[%clk 0:01:09]} 27. Bd2 {[%clk 0:01:05]}  Rc5 {[%clk 0:00:43]} 28. Bb3 {[%clk 0:01:01]}  f6 {[%clk 0:00:36]} 29. Ng4 {[%clk 0:01:01]}  Rb8 {[%clk 0:00:33]} 30. Rc1 {[%clk 0:00:48]}  Rc2 {[%clk 0:00:29]} 31. Rxc2 {[%clk 0:00:45]}  dxc2 {[%clk 0:00:28]} 32. Nf2 {[%clk 0:00:46]}  Bg6 {[%clk 0:00:20]} 33. g4 {[%clk 0:00:34]}  a5 {[%clk 0:00:19]} 34. f5 {[%clk 0:00:22]}  Qg3+ {[%clk 0:00:18]} 35. Kf1 {[%clk 0:00:21]}  Be8 {[%clk 0:00:18]} 36. Qxc2 {[%clk 0:00:17]}  Bb5+ {[%clk 0:00:17]} 37. Nd3 {[%clk 0:00:16]}  Qxh3+ {[%clk 0:00:17]} 38. Ke1 {[%clk 0:00:15]}  Qh1+ {[%clk 0:00:16]} 39. Kf2 {[%clk 0:00:15]}  Qh4+ {[%clk 0:00:13]} 40. Kf3 {[%clk 0:00:14]}  h5 {[%clk 0:00:10]} 41. Nf2 {[%clk 0:00:08]}  hxg4+ {[%clk 0:00:09]} 42. Nxg4 {[%clk 0:00:07]}  Qh3+ {[%clk 0:00:09]} 43. Kf4 {[%clk 0:00:06]}  e5+ {[%clk 0:00:10]} 44. Nxe5 {[%clk 0:00:06]}  fxe5+ {[%clk 0:00:11]} 45. Kxe5 {[%clk 0:00:06]}  Re8+ {[%clk 0:00:11]} 46. Kxd5 {[%clk 0:00:07]}  Qf3+ {[%clk 0:00:08]} 47. Kc5+ {[%clk 0:00:06]}  Kf8 {[%clk 0:00:05]} 48. Kxb5 {[%clk 0:00:05]}  Re5+ {[%clk 0:00:06]} 49. Ka4 {[%clk 0:00:02]}  Qe4+ {[%clk 0:00:05]} 50. Qxe4 {[%clk 0:00:02]}  Rxe4+ {[%clk 0:00:06]} 51. Ka3 {[%clk 0:00:03]}  Re5 {[%clk 0:00:05]} 52. e4 {[%clk 0:00:02]}  Rxe4 {[%clk 0:00:05]} 53. Bxa5 {[%clk 0:00:03]}  Rf4 {[%clk 0:00:05]} 54. Bb4+ {[%clk 0:00:03]}  Ke8 {[%clk 0:00:04]} 55. Be6 {[%clk 0:00:04]}  g6 {[%clk 0:00:04]} 56. fxg6 {[%clk 0:00:03]}  Rf6 {[%clk 0:00:00]} 57. g7 {[%clk 0:00:03]} 1-0


[Site "https://www.chess.com"]